[Event "Catalan Youth Championship 2024"]
[Site "Cambrils"]
[Date "2024.03.27"]
[Round "8.12"]
[White "Valle Luis, Liam"]
[Black "Uber Gracia, Hugo"]
[Result "1/2-1/2"]
[ECO "B13"]
[WhiteElo "1852"]
[BlackElo "2237"]
[Annotator "RC"]
[PlyCount "197"]
[EventDate "2024.03.13"]
[EventType "swiss"]
[EventCountry "ESP"]
[SourceTitle "playchess.com"]
[Source "ChessBase"]
[SourceQuality "1"]
[TimeControl "5400+30"]

1. e4 {[%emt 0:00:01]} c6 {[%emt 0:00:10]} 2. d4 {[%emt 0:00:04]} d5 {[%emt 0:00:05]} 3. exd5 {[%emt 0:00:03]} cxd5 {[%emt 0:00:06]} 4. Bd3 {[%emt 0:00:04]} Nf6 {[%emt 0:00:10]} 5. c3 {[%emt 0:00:07]} Bg4 {[%emt 0:00:21]} 6. Qb3 {[%emt 0:00:06]} Qc7 {[%emt 0:00:07]} 7. h3 {[%emt 0:00:09]} Bh5 {[%emt 0:00:28]} 8. Ne2 {[%emt 0:00:48]} Bxe2 {[%emt 0:00:07]} 9. Bxe2 {[%emt 0:00:05]} e6 {[%emt 0:00:46]} 10. Nd2 {[%emt 0:01:08]} Bd6 {[%emt 0:01:08]} 11. Nf3 {[%emt 0:00:17]} Nc6 {[%emt 0:01:45]} 12. Be3 {[%emt 0:00:45]} a6 {[%emt 0:02:21]} 13. Bd3 {[%emt 0:02:43]} b5 {[%emt 0:05:01]} 14. O-O {[%emt 1:31:10]} O-O {[%emt 1:24:55]} 15. Rfe1 {[%emt 0:00:30]} Rfc8 {[%emt 0:00:30]} 16. a3 {[%emt 0:00:30]} h6 {[%emt 0:00:00]} 17. Rac1 {[%emt 0:00:00]} Na5 {[%emt 0:01:00]} 18. Qc2 {[%emt 0:00:00]} Nc4 {[%emt 0:00:00]} 19. Bxc4 {[%emt 0:00:00]} bxc4 {[%emt 0:00:00]} 20. Rcd1 {[%emt 0:02:00]} Rcb8 {[%emt 0:01:30]} 21. Bc1 {[%emt 0:00:30]} Rb7 {[%emt 0:00:30]} 22. Qe2 {[%emt 0:00:00]} Nd7 {[%emt 0:00:30]} 23. Qe3 {[%emt 0:00:00]} Rab8 {[%emt 0:00:00]} 24. Re2 {[%emt 0:00:00]} Nb6 {[%emt 0:01:00]} 25. g3 {[%emt 0:02:00]} Nd7 {[%emt 0:00:00]} 26. Kg2 {[%emt 0:00:00]} Rb5 {[%emt 0:01:00]} 27. Ne5 {[%emt 0:00:00]} Bxe5 {[%emt 0:00:00]} 28. dxe5 {[%emt 0:00:00]} Nc5 {[%emt 0:01:00]} 29. Rd4 {[%emt 0:02:00]} h5 {[%emt 0:00:30]} 30. Rh4 {[%emt 0:00:30]} Nd3 {[%emt 0:00:00]} 31. Rxh5 {[%emt 0:00:30]} Qb6 {[%emt 0:01:00]} 32. b4 {[%emt 0:00:30]} d4 {[%emt 0:00:00]} 33. cxd4 {[%emt 0:00:00]} Nxc1 {[%emt 0:00:00]} 34. Qxc1 {[%emt 0:00:00]} Qxd4 {[%emt 0:01:30]} 35. Rh4 {[%emt 0:00:00]} Qd3 {[%emt 0:00:00]} 36. Qc2 {[%emt 0:00:00]} Qxc2 {[%emt 0:00:00]} 37. Rxc2 {[%emt 0:00:00]} Rxe5 {[%emt 0:00:00]} 38. Rhxc4 {[%emt 0:00:00]} Reb5 {[%emt 0:00:00]} 39. Rc8+ {[%emt 0:00:00]} Kh7 {[%emt 0:00:00]} 40. Rxb8 {[%emt 0:00:00]} Rxb8 {[%emt 0:03:00]} 41. Rc7 {[%emt 0:04:30]} a5 {[%emt 0:00:00]} 42. bxa5 {[%emt 0:00:00]} Kg6 {[%emt 0:00:00]} 43. Rc4 {[%emt 0:00:00]} Ra8 {[%emt 0:00:00]} 44. Ra4 {[%emt 0:00:00]} Kf6 {[%emt 0:00:00]} 45. a6 {[%emt 0:00:00]} Ke5 {[%emt 0:00:00]} 46. a7 {[%emt 0:02:30]} Kd6 {[%emt 0:00:00]} 47. Kf3 {[%emt 0:00:00]} Kc5 {[%emt 0:00:00]} 48. Kf4 {[%emt 0:00:00]} Kb5 {[%emt 0:00:00]} 49. Rb4+ {[%emt 0:00:00]} Kc6 {[%emt 0:00:00]} 50. Rc4+ {[%emt 0:00:00]} Kb6 {[%emt 0:05:00]} 51. Ke5 {[%emt 0:00:00]} Rxa7 {[%emt 0:00:00]} 52. a4 {[%emt 0:03:00]} Rd7 {[%emt 0:00:00]} 53. Rd4 {[%emt 0:00:00]} f6+ {[%emt 0:00:00]} 54. Ke4 {[%emt 0:00:00]} Re7 {[%emt 0:02:00]} 55. Rc4 {[%emt 0:00:00]} Rd7 {[%emt 0:00:30]} 56. f4 {[%emt 0:02:00]} Ka5 {[%emt 0:00:00]} 57. g4 {[%emt 0:00:30]} Rb7 {[%emt 0:00:00]} 58. Rd4 {[%emt 0:00:00]} Re7 59. h4 {[%emt 0:01:00]} Rc7 {[%emt 0:02:00]} 60. g5 {[%emt 0:00:30]} Re7 {[%emt 0:00:00]} 61. f5 {[%emt 0:00:30]} e5 {[%emt 0:00:00]} 62. Rd6 {[%emt 0:00:00]} fxg5 {[%emt 0:00:00]} 63. hxg5 {[%emt 0:01:00]} Kxa4 {[%emt 0:00:00]} 64. Re6 {[%emt 0:00:00]} Rb7 {[%emt 0:00:00]} 65. Kxe5 {[%emt 0:00:00]} Rb5+ {[%emt 0:00:00]} 66. Kf4 {[%emt 0:00:00]} Rb7 {[%emt 0:00:08]} 67. g6 {[%emt 0:02:00]} Kb5 {[%emt 0:00:21]} 68. Rd6 {[%emt 0:00:00]} Kc5 {[%emt 0:00:18]} 69. Rd3 {[%emt 0:00:00]} Kc6 {[%emt 0:00:09]} 70. Kg5 {[%emt 0:01:30]} Rb1 {[%emt 0:04:34]} 71. Rd4 {[%emt 0:00:00]} Rg1+ {[%emt 0:00:00]} 72. Rg4 {[%emt 0:00:00]} Rf1 {[%emt 0:01:00]} 73. Re4 {[%emt 0:01:30]} Kd6 {[%emt 0:00:00]} 74. Re6+ {[%emt 0:00:00]} Kd7 {[%emt 0:01:00]} 75. Ra6 {[%emt 0:01:00]} Rg1+ {[%emt 0:00:00]} 76. Kh4 {[%emt 0:00:00]} Ke7 {[%emt 0:01:00]} 77. Re6+ {[%emt 0:00:00]} Kd7 {[%emt 0:00:00]} 78. Re4 {[%emt 0:00:07]} Rf1 {[%emt 0:00:00]} 79. Kg4 {[%emt 0:01:53]} Kd6 {[%emt 0:00:00]} 80. Re6+ {[%emt 0:00:00]} Kd7 {[%emt 0:00:00]} 81. Re3 {[%emt 0:00:00]} Kd6 {[%emt 0:00:00]} 82. Rf3 {[%emt 0:00:00]} Rg1+ {[%emt 0:00:00]} 83. Kf4 {[%emt 0:00:00]} Ke7 {[%emt 0:03:30]} 84. Re3+ {[%emt 0:02:30]} Kd6 {[%emt 0:00:00]} 85. Re6+ {[%emt 0:00:00]} Kd7 {[%emt 0:00:00]} 86. Re4 {[%emt 0:00:00]} Kd6 {[%emt 0:00:00]} 87. Rd4+ {[%emt 0:00:00]} Ke7 {[%emt 0:00:00]} 88. Ke5 {[%emt 0:00:00]} Re1+ {[%emt 0:00:00]} 89. Re4 {[%emt 0:00:00]} Rf1 {[%emt 0:00:00]} 90. Re3 {[%emt 0:03:00]} Rf2 {[%emt 0:03:30]} 91. Re4 {[%emt 0:00:00]} Rf1 {[%emt 0:00:00]} 92. Ra4 {[%emt 0:00:00]} Re1+ {[%emt 0:01:00]} 93. Kf4 {[%emt 0:00:00]} Rf1+ {[%emt 0:00:00]} 94. Kg5 {[%emt 0:00:00]} Rg1+ {[%emt 0:00:00]} 95. Rg4 {[%emt 0:00:00]} Rf1 {[%emt 0:01:30]} 96. Re4+ {[%emt 0:00:00]} Kd7 {[%emt 0:00:30]} 97. Re5 {[%emt 0:00:13]} Rg1+ {[%emt 0:00:00]} 98. Kf4 {[%emt 0:00:34]} Rf1+ {[%emt 0:01:00]} 99. Kg5 {[%emt 0:03:43]} 1/2-1/2

[Event "Catalan Youth Championship 2024"]
[Site "Cambrils"]
[Date "2024.03.27"]
[Round "8.13"]
[White "Montes Molina, Ivan"]
[Black "Anguera Staina, Maxim"]
[Result "1/2-1/2"]
[ECO "C41"]
[WhiteElo "2100"]
[BlackElo "2020"]
[Annotator "RC"]
[PlyCount "99"]
[EventDate "2024.03.13"]
[EventType "swiss"]
[EventCountry "ESP"]
[SourceTitle "playchess.com"]
[Source "ChessBase"]
[SourceQuality "1"]
[TimeControl "5400+30"]

1. e4 {[%emt 0:00:04]} d6 {[%emt 0:00:18]} 2. d4 {[%emt 0:00:05]} Nf6 {[%emt 0:00:11]} 3. Nc3 {[%emt 0:00:05]} e5 {[%emt 1:31:31]} 4. Nf3 {[%emt 0:00:05]} Nbd7 {[%emt 0:00:00]} 5. Rg1 {[%emt 0:00:04]} exd4 {[%emt 0:00:00]} 6. Nxd4 {[%emt 0:00:39]} Ne5 {[%emt 0:00:00]} 7. f4 {[%emt 0:04:18]} Nc6 {[%emt 0:00:00]} 8. Be2 {[%emt 0:01:07]} Qe7 {[%emt 0:00:00]} 9. Qd3 {[%emt 0:04:38]} Bd7 {[%emt 0:00:00]} 10. a3 {[%emt 0:07:22]} Nxd4 {[%emt 0:00:00]} 11. Qxd4 {[%emt 0:01:45]} c5 {[%emt 0:00:00]} 12. Qd3 {[%emt 0:02:44]} Bc6 {[%emt 0:00:00]} 13. Nd5 {[%emt 0:05:07]} Bxd5 {[%emt 0:00:00]} 14. exd5 {[%emt 0:01:51]} O-O-O {[%emt 0:00:00]} 15. g3 {[%emt 0:05:21]} Kb8 {[%emt 0:00:00]} 16. Bd2 {[%emt 0:02:18]} Re8 {[%emt 0:00:00]} 17. Rg2 {[%emt 0:00:27]} Qe4 {[%emt 0:00:00]} 18. Qxe4 {[%emt 0:07:28]} Nxe4 {[%emt 0:00:00]} 19. O-O-O {[%emt 0:08:01]} Nxd2 {[%emt 0:00:00]} 20. Kxd2 {[%emt 0:01:31]} g6 {[%emt 0:00:00]} 21. Bb5 {[%emt 0:00:39]} Re7 {[%emt 0:00:00]} 22. Re1 {[%emt 0:13:02]} Rxe1 {[%emt 0:00:00]} 23. Kxe1 {[%emt 0:00:30]} Bg7 {[%emt 0:00:00]} 24. c4 {[%emt 0:00:17]} a6 {[%emt 0:00:00]} 25. Ba4 {[%emt 0:00:28]} Ka7 {[%emt 0:00:00]} 26. Re2 {[%emt 0:04:39]} Rb8 {[%emt 0:00:00]} 27. Bd7 {[%emt 0:10:58]} b5 {[%emt 0:00:00]} 28. cxb5 {[%emt 0:05:39]} axb5 {[%emt 0:00:00]} 29. Kd1 {[%emt 0:00:17]} Kb6 {[%emt 0:00:00]} 30. Kc2 {[%emt 0:01:25]} Bd4 {[%emt 0:00:00]} 31. h3 {[%emt 0:02:52]} Ka5 {[%emt 0:00:00]} 32. b3 {[%emt 0:02:20]} c4 {[%emt 0:00:00]} 33. Bc6 {[%emt 0:00:42]} b4 {[%emt 0:00:00]} 34. a4 {[%emt 0:01:10]} f5 {[%emt 0:00:00]} 35. Bb5 {[%emt 0:04:31]} c3 {[%emt 0:00:00]} 36. Kd3 {[%emt 0:00:31]} Bc5 {[%emt 0:00:00]} 37. Re7 {[%emt 0:00:53]} h6 {[%emt 0:00:00]} 38. h4 {[%emt 0:01:31]} g5 {[%emt 0:00:00]} 39. Rg7 {[%emt 0:01:54]} gxh4 {[%emt 0:00:00]} 40. gxh4 {[%emt 0:00:06]} Bf2 {[%emt 0:00:00]} 41. h5 {[%emt 0:00:10]} Kb6 {[%emt 0:05:58]} 42. Rg6 {[%emt 0:00:14]} Rd8 {[%emt 0:01:54]} 43. Rxh6 {[%emt 0:00:58]} Bg3 {[%emt 0:00:03]} 44. Rg6 {[%emt 0:01:09]} Bxf4 {[%emt 0:00:03]} 45. Kc2 {[%emt 0:00:32]} Rh8 {[%emt 0:00:28]} 46. Be2 {[%emt 0:00:19]} Re8 {[%emt 0:01:56]} 47. Re6 {[%emt 0:00:14]} Rg8 {[%emt 0:01:44]} 48. Rg6 {[%emt 0:00:43]} Re8 {[%emt 0:00:54]} 49. Re6 {[%emt 0:00:16]} Rg8 {[%emt 0:00:08]} 50. Rg6 {[%emt 0:00:56]} 1/2-1/2

[Event "Catalan Youth Championship 2024"]
[Site "Cambrils"]
[Date "2024.03.27"]
[Round "8.14"]
[White "Salinas Tomas, Daniel"]
[Black "Lozano Casasayas, Marc"]
[Result "1-0"]
[ECO "E05"]
[WhiteElo "2386"]
[BlackElo "2015"]
[Annotator "RC"]
[PlyCount "145"]
[EventDate "2024.03.13"]
[EventType "swiss"]
[EventCountry "ESP"]
[SourceTitle "playchess.com"]
[Source "ChessBase"]
[SourceQuality "1"]
[TimeControl "5400+30"]

1. Nf3 {[%emt 0:00:03]} d5 {[%emt 0:00:17]} 2. g3 {[%emt 0:00:05]} Nf6 {[%emt 0:00:14]} 3. Bg2 {[%emt 0:00:04]} e6 {[%emt 0:00:11]} 4. O-O {[%emt 0:00:04]} Be7 {[%emt 0:00:06]} 5. d4 {[%emt 0:00:04]} O-O {[%emt 0:00:09]} 6. c4 {[%emt 0:00:02]} dxc4 {[%emt 0:00:07]} 7. Qc2 {[%emt 0:00:04]} a6 {[%emt 0:00:06]} 8. Rd1 {[%emt 0:00:03]} b5 {[%emt 0:00:05]} 9. Ne5 {[%emt 0:00:02]} Nd5 {[%emt 0:00:11]} 10. b3 {[%emt 0:00:05]} cxb3 {[%emt 0:00:06]} 11. axb3 {[%emt 0:00:03]} Bb7 {[%emt 0:00:14]} 12. Ba3 {[%emt 0:00:03]} Bxa3 {[%emt 0:00:07]} 13. Nxa3 {[%emt 0:00:20]} Nd7 {[%emt 0:00:24]} 14. Nd3 {[%emt 1:36:28]} Qe7 {[%emt 0:39:09]} 15. e4 {[%emt 0:00:00]} N5f6 {[%emt 0:00:17]} 16. Re1 {[%emt 0:01:00]} Rfc8 {[%emt 0:08:50]} 17. b4 {[%emt 0:00:30]} e5 {[%emt 0:08:35]} 18. dxe5 {[%emt 0:00:00]} Ng4 {[%emt 0:08:06]} 19. f4 {[%emt 0:00:00]} c5 {[%emt 0:00:25]} 20. bxc5 {[%emt 0:00:00]} Nxc5 {[%emt 0:00:06]} 21. Nxc5 {[%emt 0:00:00]} Rxc5 {[%emt 0:01:23]} 22. Qe2 {[%emt 0:02:30]} Rc3 {[%emt 0:18:12]} 23. Qxg4 {[%emt 0:00:00]} Rxa3 {[%emt 0:00:55]} 24. Rxa3 {[%emt 0:00:00]} Qxa3 {[%emt 0:00:01]} 25. h4 {[%emt 0:00:00]} Qc5+ {[%emt 0:01:42]} 26. Kh2 {[%emt 0:02:00]} Qe7 {[%emt 0:13:32]} 27. Rd1 {[%emt 0:00:00]} Rd8 {[%emt 0:00:00]} 28. Rxd8+ {[%emt 0:00:00]} Qxd8 {[%emt 0:00:00]} 29. e6 {[%emt 0:00:00]} f6 {[%emt 0:00:00]} 30. Qe2 {[%emt 0:00:00]} Qe7 {[%emt 0:00:53]} 31. f5 {[%emt 0:00:00]} h6 {[%emt 0:01:05]} 32. Qd3 {[%emt 0:00:00]} b4 {[%emt 0:00:30]} 33. Qd4 {[%emt 0:00:00]} Kf8 {[%emt 0:00:29]} 34. Qb6 {[%emt 0:00:00]} Bc8 {[%emt 0:00:28]} 35. Qb8 {[%emt 0:00:00]} Qb7 {[%emt 0:00:26]} 36. Qd6+ {[%emt 0:00:00]} Qe7 {[%emt 0:00:07]} 37. Qb6 {[%emt 0:00:00]} h5 {[%emt 0:01:32]} 38. e5 {[%emt 0:00:00]} fxe5 {[%emt 0:00:00]} 39. Qb8 {[%emt 0:00:00]} Qc5 {[%emt 0:00:24]} 40. Bb7 {[%emt 0:00:00]} Qf2+ {[%emt 0:00:29]} 41. Bg2 {[%emt 0:00:00]} Qc5 {[%emt 0:00:07]} 42. Kh3 {[%emt 0:00:00]} Ke7 {[%emt 0:00:54]} 43. Bb7 {[%emt 0:00:00]} e4 {[%emt 0:00:23]} 44. Bxe4 {[%emt 0:00:26]} g6 {[%emt 0:01:13]} 45. fxg6 {[%emt 0:03:09]} Bxe6+ {[%emt 0:00:30]} 46. Kg2 Qd4 {[%emt 0:00:00]} 47. Qc7+ {[%emt 0:00:18]} Bd7 {[%emt 0:00:23]} 48. Qf4 {[%emt 0:01:40]} Qb2+ {[%emt 0:00:23]} 49. Kg1 {[%emt 0:00:34]} Qd4+ {[%emt 0:00:23]} 50. Kh2 {[%emt 0:00:12]} Qf6 {[%emt 0:00:47]} 51. Qe3 {[%emt 0:02:45]} Qe5 {[%emt 0:00:31]} 52. g7 {[%emt 0:03:56]} Qxg7 {[%emt 0:00:27]} 53. Qc5+ {[%emt 0:00:00]} Kd8 {[%emt 0:00:32]} 54. Qb6+ {[%emt 0:00:00]} Ke8 {[%emt 0:00:30]} 55. Bg6+ {[%emt 0:00:00]} Ke7 {[%emt 0:00:21]} 56. Qxb4+ {[%emt 0:00:00]} Kd8 {[%emt 0:00:37]} 57. Qb6+ {[%emt 0:00:25]} Ke7 {[%emt 0:00:23]} 58. Bxh5 {[%emt 0:00:47]} Qe5 {[%emt 0:00:42]} 59. Qb4+ {[%emt 0:00:51]} Kd8 {[%emt 0:00:27]} 60. Bf3 {[%emt 0:00:36]} Qf5 {[%emt 0:00:32]} 61. Qb8+ {[%emt 0:00:37]} Ke7 {[%emt 0:00:19]} 62. Qb4+ {[%emt 0:00:01]} Kd8 {[%emt 0:00:06]} 63. Qb6+ {[%emt 0:00:33]} Ke7 {[%emt 0:00:12]} 64. Qe3+ {[%emt 0:00:02]} Kf8 {[%emt 0:00:34]} 65. g4 {[%emt 0:00:13]} Qc2+ {[%emt 0:00:29]} 66. Kh3 {[%emt 0:00:39]} Qg6 {[%emt 0:00:00]} 67. Qc5+ {[%emt 0:00:01]} Kg8 {[%emt 0:02:22]} 68. Bd5+ {[%emt 0:00:44]} Kh7 {[%emt 0:00:00]} 69. Qe7+ {[%emt 0:00:13]} Qg7 {[%emt 0:00:27]} 70. Be4+ {[%emt 0:00:17]} Kh8 {[%emt 0:00:24]} 71. Qd8+ {[%emt 0:00:07]} Qg8 {[%emt 0:00:13]} 72. Qxd7 {[%emt 0:00:09]} Qb3+ {[%emt 0:00:07]} 73. Qd3 {[%emt 0:00:14]} 1-0

[Event "Catalan Youth Championship 2024"]
[Site "Cambrils"]
[Date "2024.03.27"]
[Round "8.15"]
[White "Benseny Martinez, Guerau"]
[Black "Sviridenko, Yaroslav"]
[Result "1/2-1/2"]
[ECO "C08"]
[WhiteElo "1986"]
[BlackElo "1961"]
[Annotator "NA RC"]
[PlyCount "132"]
[EventDate "2024.03.13"]
[EventType "swiss"]
[EventCountry "ESP"]
[SourceTitle "playchess.com"]
[Source "ChessBase"]
[SourceQuality "1"]
[TimeControl "5400+30"]

1. e4 {[%emt 0:00:21]} e6 {[%emt 1:31:00]} 2. d4 {[%emt 0:01:56]} d5 {[%emt 0:00:00]} 3. Nd2 {[%emt 1:29:43]} c5 {[%emt 0:00:00]} 4. Ngf3 {[%emt 0:00:00]} Nf6 {[%emt 0:01:30]} 5. exd5 {[%emt 0:00:00]} exd5 {[%emt 0:00:00]} 6. Bb5+ {[%emt 0:00:00]} Bd7 {[%emt 0:00:00]} 7. Bxd7+ {[%emt 0:00:00]} Nbxd7 {[%emt 0:01:30]} 8. O-O {[%emt 0:02:30]} Be7 $11 {[%emt 0:00:00]} 9. dxc5 {[%emt 0:00:00]} Nxc5 {[%emt 0:00:00]} 10. Nb3 {[%emt 0:00:00]} O-O {[%emt 0:01:30]} 11. Be3 {[%emt 0:00:00]} Rc8 {[%emt 0:00:00]} 12. Nxc5 {[%emt 0:00:00]} Bxc5 {[%emt 0:00:00]} 13. Bxc5 {[%emt 0:00:00]} Rxc5 {[%emt 0:00:00]} 14. Nd4 {[%emt 0:00:00]} Qb6 {[%emt 0:02:00]} 15. Nb3 {[%emt 0:00:00]} Rc4 {[%emt 0:00:00]} 16. c3 {[%emt 0:00:00]} Re8 {[%emt 0:00:00]} 17. Rb1 {[%emt 0:00:00]} Qa6 {[%emt 0:00:00]} 18. Ra1 {[%emt 0:00:00]} Rh4 {[%emt 0:00:00]} 19. Nd4 {[%emt 0:00:00]} h6 {[%emt 0:00:00]} 20. Re1 {[%emt 0:00:00]} Rhe4 {[%emt 0:00:00]} 21. Rxe4 {[%emt 0:00:00]} dxe4 {[%emt 0:00:00]} 22. Qe2 {[%emt 0:00:00]} Qxe2 {[%emt 0:00:00]} 23. Nxe2 {[%emt 0:00:00]} Nd7 {[%emt 0:00:00]} 24. Rd1 {[%emt 0:00:51]} Nc5 {[%emt 0:00:00]} 25. Rd4 {[%emt 0:02:45]} Re7 {[%emt 0:00:00]} 26. Ng3 {[%emt 0:01:02]} e3 {[%emt 0:00:00]} 27. fxe3 {[%emt 0:00:28]} Rxe3 {[%emt 0:00:00]} 28. Kf2 {[%emt 0:01:12]} Rd3 {[%emt 0:00:00]} 29. Ke2 {[%emt 0:00:29]} Rxd4 {[%emt 0:00:00]} 30. cxd4 {[%emt 0:00:01]} Na4 {[%emt 0:00:00]} 31. b4 {[%emt 0:01:03]} g6 {[%emt 0:00:00]} 32. Kd3 {[%emt 0:01:00]} Kf8 {[%emt 0:00:00]} 33. Ne4 {[%emt 0:00:28]} b5 {[%emt 0:00:00]} 34. Nd6 {[%emt 0:01:50]} a6 {[%emt 0:00:00]} 35. Ne4 {[%emt 0:00:38]} Nb2+ {[%emt 0:00:00]} 36. Kc3 {[%emt 0:00:39]} Nc4 {[%emt 0:00:00]} 37. Nc5 {[%emt 0:00:32]} Ne3 {[%emt 0:00:00]} 38. Nxa6 {[%emt 0:00:18]} Nxg2 {[%emt 0:00:00]} 39. Nc7 {[%emt 0:00:16]} f5 {[%emt 0:00:00]} 40. Kd3 {[%emt 0:00:55]} Ne1+ {[%emt 0:00:00]} 41. Ke2 {[%emt 0:00:31]} Nc2 {[%emt 0:00:00]} 42. Nxb5 {[%emt 0:00:11]} Nxb4 {[%emt 0:00:00]} 43. a4 {[%emt 0:00:16]} Ke7 {[%emt 0:00:00]} 44. Kd2 {[%emt 0:01:28]} f4 {[%emt 0:00:00]} 45. Ke2 {[%emt 0:00:48]} g5 {[%emt 0:00:00]} 46. Kf3 {[%emt 0:00:43]} Nc6 {[%emt 0:00:00]} 47. Ke4 {[%emt 0:00:16]} Na5 {[%emt 0:00:00]} 48. d5 {[%emt 0:00:39]} Nb3 {[%emt 0:00:00]} 49. Kf3 {[%emt 0:00:18]} Kf6 {[%emt 0:00:00]} 50. d6 {[%emt 0:00:41]} Ke6 {[%emt 0:00:00]} 51. Kf2 {[%emt 0:00:38]} g4 {[%emt 0:00:00]} 52. Ke2 {[%emt 0:00:27]} h5 {[%emt 0:00:00]} 53. Kf2 {[%emt 0:00:29]} h4 {[%emt 0:00:00]} 54. Kg2 {[%emt 0:00:36]} h3+ {[%emt 0:00:00]} 55. Kf2 {[%emt 0:00:23]} Nc5 {[%emt 0:00:00]} 56. a5 {[%emt 0:00:34]} g3+ {[%emt 0:00:00]} 57. hxg3 {[%emt 0:00:09]} Ne4+ {[%emt 0:00:00]} 58. Kg1 {[%emt 0:00:15]} fxg3 {[%emt 0:00:00]} 59. Nd4+ {[%emt 0:00:21]} Kd7 {[%emt 0:00:00]} 60. Ne2 {[%emt 0:00:59]} Kxd6 {[%emt 0:00:00]} 61. Nxg3 {[%emt 0:00:16]} Nxg3 {[%emt 0:00:00]} 62. Kh2 {[%emt 0:00:02]} Ne4 {[%emt 0:00:00]} 63. Kxh3 {[%emt 0:00:03]} Kc6 {[%emt 0:00:00]} 64. Kg2 {[%emt 0:00:06]} Kb5 {[%emt 0:00:00]} 65. Kf3 {[%emt 0:00:06]} Nc5 {[%emt 0:00:00]} 66. Kf2 {[%emt 0:00:12]} Kxa5 {[%emt 0:00:00]} 1/2-1/2

[Event "Catalan Youth Championship 2024"]
[Site "Cambrils"]
[Date "2024.03.27"]
[Round "8.16"]
[White "Aleksanyan Israilyan, Nicolas"]
[Black "Fernandez Climent, Albert"]
[Result "1-0"]
[ECO "C11"]
[WhiteElo "2045"]
[BlackElo "1978"]
[Annotator "NA RC"]
[PlyCount "71"]
[EventDate "2024.03.13"]
[EventType "swiss"]
[EventCountry "ESP"]
[SourceTitle "playchess.com"]
[Source "ChessBase"]
[SourceQuality "1"]
[TimeControl "5400+30"]

1. e4 {[%emt 0:00:37]} e6 {[%emt 0:00:05]} 2. d4 {[%emt 0:01:00]} d5 {[%emt 0:00:03]} 3. Nc3 {[%emt 0:00:04]} Nf6 {[%emt 0:00:09]} 4. e5 {[%emt 0:00:05]} Nfd7 {[%emt 1:32:13]} 5. f4 c5 {[%emt 0:00:00]} 6. Nf3 {[%emt 0:00:06]} Nc6 {[%emt 0:00:00]} 7. Be3 {[%emt 0:00:01]} h6 {[%emt 0:00:00]} 8. Ne2 {[%emt 0:01:44]} Qb6 {[%emt 0:00:00]} 9. Rb1 {[%emt 0:01:14]} Be7 {[%emt 0:00:00]} 10. c3 {[%emt 0:01:30]} cxd4 {[%emt 0:00:00]} 11. cxd4 {[%emt 0:02:15]} O-O {[%emt 0:00:00]} 12. Nc3 {[%emt 0:00:27]} f6 {[%emt 0:00:00]} 13. Qd2 $14 {[%emt 0:00:08]} Qd8 {[%emt 0:00:00]} 14. Be2 {[%emt 0:01:02]} Nb6 {[%emt 0:00:00]} 15. O-O {[%emt 0:02:23]} f5 {[%emt 0:00:00]} 16. h3 {[%emt 0:01:05]} Na5 {[%emt 0:00:00]} 17. Bd3 {[%emt 0:18:08]} Nbc4 {[%emt 0:00:00]} 18. Qe2 {[%emt 0:01:23]} Bd7 {[%emt 0:00:00]} 19. Kh2 {[%emt 0:00:47]} Kh8 {[%emt 0:00:00]} 20. Bc1 {[%emt 0:01:41]} Rc8 {[%emt 0:00:00]} 21. Rg1 {[%emt 0:01:24]} b5 {[%emt 0:00:00]} 22. g4 {[%emt 0:01:08]} b4 {[%emt 0:00:00]} 23. Nd1 {[%emt 0:03:05]} Qb6 {[%emt 0:00:00]} 24. gxf5 {[%emt 0:11:57]} exf5 {[%emt 0:00:00]} 25. b3 {[%emt 0:00:10]} Na3 {[%emt 0:00:00]} 26. Bxa3 {[%emt 0:00:02]} bxa3 {[%emt 0:00:00]} 27. Ne3 {[%emt 0:00:02]} Qc6 {[%emt 0:00:00]} 28. Qg2 {[%emt 0:01:07]} Rf7 {[%emt 0:00:00]} 29. e6 {[%emt 0:01:11]} Qxe6 {[%emt 0:00:21]} 30. Ne5 {[%emt 0:00:01]} Bf6 {[%emt 0:01:44]} 31. Bxf5 {[%emt 0:02:06]} Qe8 {[%emt 0:00:48]} 32. Qg6 {[%emt 0:01:49]} Bxf5 {[%emt 0:02:36]} 33. Nxf7+ {[%emt 0:00:07]} Kg8 {[%emt 0:00:44]} 34. Qxf6 {[%emt 0:00:18]} Qxf7 {[%emt 0:01:27]} 35. Qxf7+ {[%emt 0:00:02]} Kxf7 {[%emt 0:00:10]} 36. Nxf5 {[%emt 0:00:06]} 1-0

[Event "Catalan Youth Championship 2024"]
[Site "Cambrils"]
[Date "2024.03.27"]
[Round "8.17"]
[White "Sanchez Aguilar, Arnau"]
[Black "Valle Luis, Leo"]
[Result "1/2-1/2"]
[ECO "B56"]
[WhiteElo "2168"]
[BlackElo "2230"]
[Annotator "RC"]
[PlyCount "65"]
[EventDate "2024.03.13"]
[EventType "swiss"]
[EventCountry "ESP"]
[SourceTitle "playchess.com"]
[Source "ChessBase"]
[SourceQuality "1"]
[TimeControl "5400+30"]

1. e4 {[%emt 0:00:17]} c5 {[%emt 0:00:45]} 2. Nf3 {[%emt 0:00:39]} d6 {[%emt 0:00:25]} 3. Nc3 {[%emt 0:02:07]} Nc6 {[%emt 0:00:39]} 4. d4 {[%emt 0:00:19]} cxd4 {[%emt 0:00:10]} 5. Nxd4 {[%emt 0:00:02]} Nf6 {[%emt 0:00:01]} 6. Nd5 {[%emt 0:00:02]} Nxd5 {[%emt 0:01:01]} 7. exd5 {[%emt 0:00:05]} Qa5+ {[%emt 0:00:00]} 8. Bd2 {[%emt 0:00:02]} Qxd5 {[%emt 0:00:01]} 9. Nb5 {[%emt 0:00:00]} Qe6+ {[%emt 0:00:29]} 10. Be2 {[%emt 0:00:04]} Qd7 {[%emt 0:00:03]} 11. c4 {[%emt 0:00:01]} a6 {[%emt 0:00:50]} 12. Nc3 {[%emt 0:00:21]} e6 {[%emt 0:00:36]} 13. O-O {[%emt 0:02:04]} Be7 {[%emt 0:00:16]} 14. Be3 {[%emt 0:00:48]} O-O {[%emt 0:00:17]} 15. Qd2 {[%emt 0:01:08]} Qc7 {[%emt 0:02:57]} 16. Rfd1 {[%emt 0:03:00]} Qa5 {[%emt 0:03:55]} 17. Bf3 {[%emt 0:02:24]} Rd8 {[%emt 0:03:51]} 18. Bf4 {[%emt 0:07:46]} h6 {[%emt 0:05:21]} 19. Bxc6 {[%emt 0:01:17]} bxc6 {[%emt 0:00:09]} 20. Nd5 {[%emt 0:00:01]} Qxd2 {[%emt 0:00:18]} 21. Nxe7+ {[%emt 0:00:02]} Kf8 {[%emt 0:00:01]} 22. Ng6+ {[%emt 0:00:22]} fxg6 {[%emt 0:00:03]} 23. Rxd2 {[%emt 0:00:05]} d5 {[%emt 0:06:00]} 24. c5 {[%emt 0:00:41]} a5 {[%emt 0:01:12]} 25. Re1 {[%emt 0:02:46]} Kf7 {[%emt 0:00:23]} 26. h4 {[%emt 0:00:42]} Re8 {[%emt 0:01:35]} 27. Be5 {[%emt 0:01:46]} Ba6 {[%emt 0:00:28]} 28. Re3 {[%emt 0:00:15]} Ra7 {[%emt 0:18:34]} 29. Rd4 {[%emt 0:00:30]} Kg8 {[%emt 0:05:12]} 30. Rg3 {[%emt 0:01:30]} Kh7 {[%emt 0:00:05]} 31. Rdg4 {[%emt 0:00:07]} Be2 {[%emt 0:00:55]} 32. Rxg6 {[%emt 0:00:24]} Ree7 {[%emt 0:00:04]} 33. Bd6 {[%emt 0:02:09]} 1/2-1/2